{"text_format":"1","workbook":"xlsx","n_sheets":6,"sheets":["Мониторинг","Лист3","Лист1","Свод","Лист2","Подписанты"],"not_rendered":{"charts":0,"images":0,"macros":1,"external_links":0,"defined_names":2,"comments":0,"pivot_tables":0},"unopened":[],"bounds":{"document_bytes":16777216,"sheet_cells":100000,"rows_first":2000,"rows_last":500,"rows_between":2000,"halvings":0,"cell_chars":16384,"cell_head_chars":4096},"cells_cut":0,"cells_raw":0,"read":"whole","date_system":"1900"}

{"sheet":"Мониторинг","index":0,"n_rows":51,"n_cols":16,"rows_kept":51,"cut":false,"hidden":false,"merged":[[6,0,8,0],[6,1,8,1],[6,2,8,2],[6,3,8,3],[6,4,6,8],[7,4,8,4],[7,5,8,5],[7,6,8,6],[4,4,4,13],[0,0,0,4],[0,5,0,8],[1,5,1,8],[2,0,2,15],[3,4,3,14],[50,13,50,15],[45,2,45,6],[46,2,46,6],[46,8,46,10],[46,13,46,15],[45,13,45,15],[47,13,47,15],[49,13,49,15],[49,8,49,9],[49,10,49,11],[48,13,48,15],[42,13,42,15],[43,2,43,6],[43,8,43,10],[43,13,43,15],[7,7,7,8],[6,14,8,14],[6,15,8,15],[6,9,7,13],[42,2,42,6],[41,2,41,6],[41,13,41,15]]}
["Показатели ежемесячного мониторинга за",null,null,null,null,"январь 2017 года",null,null,null,"(нарастающим итогом с начала года)"]
[null,null,null,null,null,"(период с начала года, например, январь-апрель 2017 года)"]
["о  реализации мероприятий  федеральной целевой программы \"Повышение безопасности дорожного движения в 2013-2020 годах\", финансируемых за счет средств федерального бюджета в 2017 году"]
[null,null,"Государственный заказчик:",null,"Министерство Российской Федерации по делам гражданской обороны, чрезвычайных ситуаций и ликвидации последствий стихийных бедствий"]
[null,null,null,null,"(государственный заказчик)"]
[null,null,null,null,null,null,null,null,null,null,null,null,null,null,null,"тыс. рублей"]
["№ \nп/п","Мероприятие","Объем средств федерального бюджета по постановле-нию Прави-тельства РФ \nот 03.10.2013 \n№ 864 \n(в ред. от 11.10.2016 \n№ 1031)","Объем доведенных лимитов бюджетных обязательств по Феде-ральному закону от 19.12.2016 \n№ 415-ФЗ","Процедура заключения государственного контракта",null,null,null,null,"Ход исполнения обязательств по государственному контракту с начала года",null,null,null,null,"Остаток лимитов бюджетных обязательств (столбец 4 - столбец 9)","Этап выполнения мероприятия"]
[null,null,null,null," Информация о наличии технических заданий (есть/нет)","Информация о размещении конкурсной документации (номер, дата)","№, дата государственного контракта, \nнаименования организаций-исполнителей","Стоимость работ  действующего государственного контракта"]
[null,null,null,null,null,null,null,"Всего","в т.ч. предумотрено на 2017 год","Оплаченный аванс","Принято работ по актам выполненных работ","Всего оплачено по контракту (кассовые расходы с начала года)","Остаток средств, подлежащих перечислению  (столбец  9 - столбец 12)","Срок исполнения, предусмотрен-ный контрактом"]
[1,2,3,4,5,6,7,8,9,10,11,12,13,14,15,16]
[null,"ВСЕГО (НИОКР, прочие нужды) ",{"$f":"C12+C18","v":243798.3},{"$f":"D12+D18","v":149815.20000000001},null,null,null,{"$f":"H12+H18","v":0},{"$f":"I12+I18","v":0},{"$f":"J12+J18","v":0},{"$f":"K12+K18","v":0},{"$f":"L12+L18","v":0},{"$f":"I11-L11","v":0},null,{"$f":"D11-I11","v":149815.20000000001}]
[null,"НИОКР, всего",{"$f":"C14+C16","v":6212},{"$f":"D14+D16","v":5700},null,null,null,{"$f":"H14+H16","v":0},{"$f":"I14+I16","v":0},0,0,0,{"$f":"I12-L12","v":0},null,{"$f":"D12-I12","v":5700}]
[null,"в том числе:"]
[1,"6/1 «Проведение научных исследований, направленных на совершенствование нормативной и методической базы в области ликвидации последствий дорожно-транспортных происшествий»",{"$f":"C15","v":3112},{"$f":"D15","v":2850},null,null,null,{"$f":"SUM(H15)","v":0},{"$f":"SUM(I15)","v":0},0,0,0,{"$f":"I14-L14","v":0},null,{"$f":"D14-I14","v":2850}]
["1.1.","Совершенствование нормативной \nи методической базы в области организации реагирования и ликвидации последствий дорожно-транспортных происшествий и чрезвычайных ситуаций на автомобильных дорогах субъекта Российской Федерации",3112,2850,null,null,null,null,null,null,null,null,{"$f":"I15-L15","v":0},null,{"$f":"D15-I15","v":2850}]
[2,"6/2 «Разработка научно обоснованных предложений по совершенствованию информационно-аналитического обеспечения функционирования системы ликвидации последствий дорожно-транспортных происшествий»",{"$f":"C17","v":3100},{"$f":"D17","v":2850},null,null,null,{"$f":"SUM(H17)","v":0},{"$f":"SUM(I17)","v":0},0,0,0,{"$f":"I16-L16","v":0},null,{"$f":"D16-I16","v":2850}]
["2.1.","Разработка научно-обоснованных предложений по совершенствованию информационно-аналитического обеспечения функционирования системы ликвидации последствий дорожно-транспортных происшествий",3100,2850,null,null,null,null,null,null,null,null,{"$f":"I17-L17","v":0},null,{"$f":"D17-I17","v":2850}]
[null,"Прочие нужды, всего",{"$f":"C21+C33+C35+C38+C40","v":237586.3},{"$f":"D21+D33+D35+D38+D40","v":144115.20000000001},null,null,null,{"$f":"H21+H33+H35+H38+H40","v":0},{"$f":"I21+I33+I35+I38+I40","v":0},{"$f":"J21+J33+J35+J38+J40","v":0},{"$f":"K21+K33+K35+K38+K40","v":0},{"$f":"L21+L33+L35+L38+L40","v":0},{"$f":"I18-L18","v":0},null,{"$f":"D18-I18","v":144115.20000000001}]
[null,"в том числе:"]
[null,null,null,null,null,null,null,null,null,null,null,null,{"$f":"I20-L20","v":0},null,{"$f":"D20-I20","v":0}]
[1,"6/5 «Внедрение современных образцов специальной техники, инструмента, оборудования и технологий, предназначенных для проведения аварийно-спасательных работ, в подразделения МЧС России, привлекаемые к ликвидации последствий дорожно-транспортных происшествий»",212016.3,{"$f":"SUM(D22:D32)","v":122615.2},null,null,null,{"$f":"SUM(H22:H32)","v":0},{"$f":"SUM(I22:I32)","v":0},0,0,0,0,null,122615.2]
["1.1.","Оснащение пожарно-спасательного          подразделения МЧС России пожарным аварийно-спасательным автомобилем для ликвидации последствий дорожно-транспортных происшествий (Главное управление МЧС России по Республике Карелия)",null,10070,null,null,null,null,null,null,null,null,0,null,10070]
["1.2.","Оснащение пожарно-спасательного          подразделения МЧС России пожарным аварийно-спасательным автомобилем для ликвидации последствий дорожно-транспортных происшествий (Главное управление МЧС России по Пензенской области)",null,10070,null,null,null,null,null,null,null,null,0,null,10070]
["1.3.","Оснащение пожарно-спасательного          подразделения МЧС России пожарным аварийно-спасательным автомобилем для ликвидации последствий дорожно-транспортных происшествий (Главное управление МЧС России по городу Москве",null,10070,null,null,null,null,null,null,null,null,0,null,10070]
["1.4.","Оснащение пожарно-спасательного          подразделения МЧС России мобильным комплексом обеспечения деятельности высокоманёвренных пожарно-спасательных средств (Главное управление МЧС России по                 Пензенской области)",null,16620,null,null,null,null,null,null,null,null,0,null,16620]
["1.5.","Оснащение пожарно-спасательного          подразделения МЧС России мобильным комплексом обеспечения деятельности высокоманёвренных пожарно-спасательных средств (Главное управление МЧС России по                 Ульяновской области)",null,16620,null,null,null,null,null,null,null,null,0,null,16620]
["1.6.","Оснащение пожарно-спасательного          подразделения МЧС России мобильным комплексом обеспечения деятельности высокоманёвренных пожарно-спасательных средств (Главное управление МЧС России по Курской области)",null,16620,null,null,null,null,null,null,null,null,0,null,16620]
["1.7.","Оснащение пожарно-спасательного          подразделения МЧС России автомобилем первой помощи для ликвидации последствий дорожно-транспортных происшествий (Главное управление МЧС России по Пензенской области)",null,8075,null,null,null,null,null,null,null,null,0,null,8075]
["1.8.","Оснащение пожарно-спасательного          подразделения МЧС России пожарно-спасательным автомобилем с медицинским модулем для ликвидации последствий дорожно-транспортных происшествий (Главное управление МЧС России по Республике Карелия)",null,11120,null,null,null,null,null,null,null,null,0,null,11120]
["1.9.","Оснащение пожарно-спасательных           подразделений МЧС России мобильными автономными быстро развёртываемыми пунктами обогрева (Главные управления МЧС России по субъектам Российской Федерации)",null,10150,null,null,null,null,null,null,null,null,0,null,10150]
["1.10.","Поставка гидравлического аварийно-спасательного инструмента и оборудования для ликвидации последствий дорожно-транспортных происшествий (ФГБВОУ ВО «Академия гражданской защиты МЧС России»)",null,1200.2,null,null,null,null,null,null,null,null,0,null,1200.2]
["1.11.","Создание и внедрение мобильного программно-технического комплекса обеспечения аварийно-спасательных работ при ликвидации последствий дорожно-транспортных происшествий, в том числе при перевозке опасных грузов (МПТК-АСР-ДТП)",null,12000,null,null,null,null,null,null,null,null,0,null,12000]
[2,"6/6 «Практическая отработка вопросов взаимодействия экстренных служб и проведения аварийно-спасательных работ при ликвидации последствий дорожно-транспортных происшествий»",3500,{"$f":"SUM(D34)","v":3500},null,null,null,{"$f":"H34","v":0},{"$f":"I34","v":0},0,0,0,0,null,3500]
["2.1.","Организационное и методическое обеспечение подготовки и проведения соревнований в области ликвидации последствий дорожно-транспортных происшествий",null,3500,null,null,null,null,null,null,null,null,0,null,3500]
[3,"6/7 «Организационно-методическое и техническое обеспечение подразделений МЧС России, осуществляющих профессиональную подготовку и повышение квалификации личного состава, принимающего участие в ликвидации дорожно-транспортных происшествий»",10000,{"$f":"SUM(D36:D37)","v":9200},null,null,null,{"$f":"SUM(H36:H37)","v":0},{"$f":"SUM(I36:I37)","v":0},0,0,0,0,null,9200]
["3.1.","Организационно-методическое обеспечение пожарно-спасательных подразделений МЧС России, осуществляющих прикрытие автомобильных дорог общего пользования федерального значения между городами-участниками чемпионата мира по футболу 2018 года",null,5800,null,null,null,null,null,null,null,null,0,null,5800]
["3.2.","Организационно-методическое и техническое обеспечение процессов обучения на базе учебных центров ФПС МЧС России",null,3400,null,null,null,null,null,null,null,null,0,null,3400]
[4,"6/8 «Участие МЧС России в коммуникативных мероприятиях (конференциях, форумах, выставках и иных общественных мероприятиях) в области безопасности дорожного движения и оказания помощи пострадавшим в дорожно-транспортных происшествиях»",2900,{"$f":"SUM(D39)","v":2650},null,null,null,{"$f":"SUM(H39)","v":0},{"$f":"SUM(I39)","v":0},0,0,0,0,null,2650]
["4.1.","Участие МЧС России в коммуникативных мероприятиях (конференциях, форумах, выставках и иных общественных мероприятиях) в области безопасности дорожного движения и оказания помощи пострадавшим в дорожно-транспортных происшествиях",null,2650,null,null,null,null,null,null,null,null,0,null,2650]
[5,"6/9 «Развитие Центра мониторинга ликвидации последствий дорожно-транспортных происшествий МЧС России»",9170,6150,null,null,null,{"$f":"SUM(H41)","v":0},{"$f":"SUM(I41)","v":0},0,0,0,{"$f":"I40-L40","v":0},null,6150]
["5.1.","Развитие Информационно-аналитической системы в области ликвидации последствий дорожно-транспортных происшествий с учётом интеграции с сайтом, содержащим информацию о ситуации на автомобильных дорогах федерального, регионального и межмуниципального значения",null,6150,null,null,null,null,null,null,null,null,{"$f":"I41-L41","v":0},null,6150]
[]
[null,"Руководитель     "]
[null,null,"(Должность)",null,null,null,null,null,"Подпись",null,null,null,null,"(Ф.И.О.)"]
[]
[null,"Исполнитель     "]
[null,null,"(Должность)",null,null,null,null,null,"Подпись",null,null,null,null,"(Ф.И.О.)"]
[]
[null,null,null,null,null,null,null,null,null,null,null,null,null,"(адрес электронной почты)"]
[]
[null,null,null,null,null,null,null,null,null,null,null,null,null,"(контактный телефон)"]

{"sheet":"Лист3","index":1,"n_rows":26,"n_cols":17,"rows_kept":26,"cut":false,"hidden":false,"merged":[[12,4,12,10]]}
[]
[]
[]
[null,null,null,null,"3.1.1) № 0372100035715000063 от 01.06.2015 г. - 15 000,0 тыс. руб.",null,null,null,null,null,null,null,null,null,15000,null,15000]
[null,null,null,null,"3.1.2) № 0337100007415000052 от 16.06.2015 г. - 12 391,0 тыс. руб.",null,null,null,null,null,null,null,null,null,12391,null,12366.9]
[null,null,null,null,"3.1.3) № 0372100035715000057 от 28.05.2015 г. - 12 391,0 тыс. руб.",null,null,null,null,null,null,null,null,null,12391,null,12391]
[null,null,null,null,"3.1.4) № 0321100032715000022 от 30.04.2015 г. - 12 391,0 тыс. руб.",null,null,null,null,null,null,null,null,null,12391,null,12328.1]
[null,null,null,null,"3.1.5) № 0358100036015000046 от 19.06.2015 г. - 12 391,0 тыс. руб.",null,null,null,null,null,null,null,null,null,12391,null,10573]
[null,null,null,null,"3.1.6) № 0373100088215000041 от 10.07.2015 г. - 29 367,0 тыс. руб.",null,null,null,null,null,null,null,null,null,29367,null,23265.8]
[null,null,null,null,"3.1.7) № 0332100030315000051 от 27.05.2015 г. - 29 367,0 тыс. руб.",null,null,null,null,null,null,null,null,null,29367,null,29367]
[null,null,null,null,"3.1.8) № 0162100022915000056 от 09.05.2015 г.- 15 002,51659 тыс. руб.",null,null,null,null,null,null,null,null,null,15002.517,null,15002.6]
[null,null,null,null,"3.1.9) № 0373100038715000175 от 24.04.2015 г. - 7 055,0 тыс. руб.",null,null,null,null,null,null,null,null,null,7055,null,7055]
[null,null,null,null,"3.1.10) № 0162100022915000044 от 08.06.2015 г. - 9 621,66667 тыс. руб.                                                                                                                                          3.1.11) № 0322100003415000261 от 23.11.2015 г. - 1 316,1 тыс. руб.                 3.1.12) № 0319100001315000102 от 23.11.2015 г. - 658,1 тыс. руб.                    3.1.13) № 016200022915000101 от 17.11.2015 г. - 1 904,2 тыс. руб.                     3.1.14) № 0332100030315000087 от 17.11.2015 г. - 3 290,5 тыс. руб.                    3.1.15)  № 0373100088215000085 от 09.11.2015 г. - 658,1 тыс. руб.                         3.1.16) № 0162100022915000102 от 17.11.2015 г. - 375,5 тыс. руб."]
[null,null,null,null,null,null,null,null,null,null,null,null,null,null,9621.6669999999995,null,9621.7000000000007]
[null,null,null,null,null,null,null,null,null,null,null,null,null,null,1316.1,null,1316.1]
[null,null,null,null,null,null,null,null,null,null,null,null,null,null,658.1,null,658.1]
[null,null,null,null,null,null,null,null,null,null,null,null,null,null,1904.2,null,1974.2]
[null,null,null,null,null,null,null,null,null,null,null,null,null,null,3290.5,null,3290.5]
[null,null,null,null,null,null,null,null,null,null,null,null,null,null,658.1,null,658.1]
[null,null,null,null,null,null,null,null,null,null,null,null,null,null,375.5,null,375.5]
[]
[null,null,null,null,null,null,null,null,null,null,null,null,null,null,{"$f":"SUM(O4:O20)","v":163179.68400000001},null,{"$f":"SUM(Q4:Q20)","v":155243.60000000006}]
[]
[null,null,null,null,null,null,null,null,null,null,null,null,null,null,196579.7,null,33400]
[]
[null,null,null,null,null,null,null,null,null,null,null,null,null,null,null,null,{"$f":"SUM(Q22:Q24)","v":188643.60000000006}]

{"sheet":"Лист1","index":2,"n_rows":0,"n_cols":0,"rows_kept":0,"cut":false,"hidden":false,"merged":[]}

{"sheet":"Свод","index":3,"n_rows":8,"n_cols":8,"rows_kept":8,"cut":false,"hidden":false,"merged":[[0,0,0,7],[2,2,2,3],[9,0,9,7],[2,4,2,5],[2,6,2,7],[2,1,3,1],[2,0,3,0]]}
["Сводная информация по контрактации и кассовому исполнению в рамках реализации государственным заказчиком МЧС России в 2015 году мероприятий федеральной целевой программы \"Повышение безопасности дорожного движения в 2013 - 2020 годах\" по состоянию на январь - июль 2015 г."]
[]
["Направление","Финансирование, тыс. руб.","Объявлено",null,"Контрактация",null,"Касса"]
[null,null,"тыс. руб.","%","тыс. руб.","%","тыс. руб.","%"]
["ГКВ",{"$f":"Мониторинг!#REF!","v":{"$error":"#REF!"}},{"$f":"Мониторинг!#REF!","v":{"$error":"#REF!"}},{"$f":"Мониторинг!#REF!/Мониторинг!#REF!","v":{"$error":"#REF!"}},{"$f":"Мониторинг!#REF!","v":{"$error":"#REF!"}},{"$f":"E5/B5","v":{"$error":"#REF!"}},{"$f":"Мониторинг!#REF!","v":{"$error":"#REF!"}},{"$f":"G5/B5","v":{"$error":"#REF!"}}]
["НИОКР",{"$f":"Мониторинг!D12","v":5700},{"$f":"Мониторинг!D12","v":5700},{"$f":"Мониторинг!#REF!/Мониторинг!D12","v":{"$error":"#REF!"}},{"$f":"Мониторинг!I12","v":0},{"$f":"E6/B6","v":0},{"$f":"Мониторинг!L12","v":0},{"$f":"G6/B6","v":0}]
["Прочие нужды",{"$f":"Мониторинг!D18","v":144115.20000000001},{"$f":"Мониторинг!#REF!","v":{"$error":"#REF!"}},{"$f":"C7/B7","v":{"$error":"#REF!"}},139569.79999999999,{"$f":"E7/B7","v":0.96845995425881504},{"$f":"Мониторинг!L18","v":0},{"$f":"G7/B7","v":0}]
["Всего, тыс. руб.",{"$f":"SUM(B5:B7)","v":{"$error":"#REF!"}},{"$f":"SUM(C5:C7)","v":{"$error":"#REF!"}},{"$f":"C8/B8","v":{"$error":"#REF!"}},{"$f":"SUM(E5:E7)","v":{"$error":"#REF!"}},{"$f":"E8/B8","v":{"$error":"#REF!"}},{"$f":"SUM(G5:G7)","v":{"$error":"#REF!"}},{"$f":"G8/B8","v":{"$error":"#REF!"}}]

{"sheet":"Лист2","index":4,"n_rows":0,"n_cols":0,"rows_kept":0,"cut":false,"hidden":false,"merged":[]}

{"sheet":"Подписанты","index":5,"n_rows":8,"n_cols":14,"rows_kept":8,"cut":false,"hidden":true,"merged":[[5,13,5,15],[7,13,7,15],[0,2,0,6],[1,2,1,6],[1,8,1,10],[1,13,1,15],[2,2,2,6],[3,2,3,6],[3,8,3,10],[3,13,3,15]]}
[null,"Руководитель    "]
[null,null,"(Должность)",null,null,null,null,null,"Подпись",null,null,null,null,"(Ф.И.О.)"]
[null,"Исполнитель     "]
[null,null,"(Должность)",null,null,null,null,null,"Подпись",null,null,null,null,"(Ф.И.О.)"]
[]
[null,null,null,null,null,null,null,null,null,null,null,null,null,"(адрес электронной почты)"]
[]
[null,null,null,null,null,null,null,null,null,null,null,null,null,"(контактный телефон)"]